fUSD/lending_fUSD_20240712
["ID","MTS","AMOUNT","RATE_DAILY","PERIOD"]
[331775131,1720758670565,-953.17,0.00013951,2]
[331775132,1720758670575,-744.3,0.00013951,2]
[331775133,1720758670586,-1553.0,0.00013951,2]
[331775134,1720758670596,-933.88,0.00013951,2]
[331775135,1720758670605,-500.0,0.00013951,2]
[331775136,1720758670615,-560.14,0.00013951,2]
[331775137,1720758670625,-696.07,0.00013951,2]
[331775138,1720758670636,-500.0,0.00013951,2]
[331775139,1720758670648,-602.46,0.00013951,2]
[331775140,1720758670658,-1115.43,0.00013951,2]
[331775141,1720758670668,-759.14,0.00013951,2]
[331775142,1720758670678,-649.78,0.00013951,2]
[331775143,1720758670688,-748.76,0.00013951,2]
[331775144,1720758670698,-979.08,0.00013951,2]
[331775145,1720758670708,-686.21,0.00013951,2]
[331775146,1720758670718,-500.0,0.00013951,2]
[331775147,1720758670727,-500.0,0.00013951,2]
[331775148,1720758670738,-519.55,0.00013951,2]
[331775149,1720758670748,-500.0,0.00013951,2]
[331775150,1720758670757,-7562.45,0.00013951,2]
[331775151,1720758670767,-500.0,0.00013951,2]
[331775152,1720758670777,-500.0,0.00013951,2]
[331775153,1720758670787,-2033.84,0.00013951,2]
[331775154,1720758670798,-516.63,0.00013951,2]
[331775155,1720758670808,-301.83,0.00013951,2]
[331775156,1720758670818,-1010.41,0.00013951,2]
[331775157,1720758670827,-500.0,0.00013951,2]
[331775158,1720758670838,-608.38,0.00013951,2]
[331775159,1720758670848,-500.0,0.00013951,2]
[331775160,1720758670858,-1458.84,0.00013951,2]
[331775161,1720758670868,-5430.47,0.00013951,2]
[331775162,1720758670878,-500.0,0.00013951,2]
[331775163,1720758670888,-500.0,0.00013951,2]
[331775164,1720758670898,-500.0,0.00013951,2]
[331775165,1720758670908,-778.99,0.00013951,2]
[331775166,1720758670918,-1872.75,0.00013951,2]
[331775167,1720758670928,-346.1766949,0.00013951,2]
[331775168,1720758670938,-636.45,0.00013951,2]
[331775169,1720758670948,-831.67,0.00013951,2]
[331775170,1720758670957,-500.0,0.00013951,2]
[331775171,1720758670967,-585.83,0.00013951,2]
[331775172,1720758670977,-500.0,0.00013951,2]
[331775173,1720758670988,-500.0,0.00013951,2]
[331775174,1720758670998,-500.0,0.00013951,2]
[331775175,1720758671008,-984.46,0.00013951,2]
[331775176,1720758671018,-500.0,0.00013952,2]
[331775177,1720758671028,-500.0,0.00013952,2]
[331775178,1720758671038,-500.0,0.00013952,2]
[331775179,1720758671048,-519.41,0.00013952,2]
[331775180,1720758671057,-500.0,0.00013952,2]
[331775181,1720758671067,-500.0,0.00013952,2]
[331775182,1720758671077,-500.0,0.00013952,2]
[331775183,1720758671086,-500.0,0.00013952,2]
[331775184,1720758671096,-500.0,0.00013952,2]
[331775185,1720758671106,-500.0,0.00013952,2]
[331775186,1720758671115,-500.0,0.00013952,2]
[331775187,1720758671125,-801.0,0.00013952,2]
[331775188,1720758671135,-500.0,0.00013952,2]
[331775189,1720758671145,-500.0,0.00013952,2]
[331775190,1720758671155,-500.0,0.00013952,2]
[331775191,1720758671165,-500.0,0.00013952,2]
[331775192,1720758671175,-500.0,0.00013952,2]
[331775193,1720758671185,-500.0,0.00013952,2]
[331775194,1720758671194,-500.0,0.00013952,2]
[331775195,1720758671204,-500.0,0.00013952,2]
[331775196,1720758671214,-500.0,0.00013952,2]
[331775197,1720758671224,-500.0,0.00013952,2]
[331775198,1720758671233,-500.0,0.00013952,2]
[331775199,1720758671245,-500.0,0.00013952,2]
[331775200,1720758671256,-500.0,0.00013952,2]
[331775201,1720758671266,-771.42,0.00013952,2]
[331775202,1720758671276,-737.94,0.00013952,2]
[331775203,1720758671287,-500.0,0.00013952,2]
[331775204,1720758671297,-500.0,0.00013952,2]
[331775205,1720758671307,-500.65,0.00013952,2]
[331775206,1720758671318,-500.0,0.00013952,2]
[331775207,1720758671327,-521.22,0.00013952,2]
[331775208,1720758671338,-703.39,0.00013952,2]
[331775209,1720758671348,-500.0,0.00013952,2]
[331775210,1720758671611,-500.0,0.00013952,2]
[331775211,1720758671621,-500.0,0.00013952,2]
[331775212,1720758671630,-500.0,0.00013952,2]
[331775213,1720758671639,-500.0,0.00013952,2]
[331775214,1720758671649,-500.0,0.00013952,2]
[331775215,1720758671658,-515.14695428,0.00013952,2]
[331775216,1720758671667,-500.0,0.00013952,2]
[331775217,1720758671677,-224.62460834,0.00013952,2]
[331775218,1720758671687,-500.0,0.00013952,2]
[331775219,1720758671696,-885.71,0.00013952,2]
[331775220,1720758671706,-613.49,0.00013952,2]
[331775221,1720758671715,-500.0,0.00013952,2]
[331775222,1720758671724,-594.95,0.00013952,2]
[331775223,1720758671733,-500.0,0.00013952,2]
[331775224,1720758671743,-500.0,0.00013952,2]
[331775225,1720758671753,-536.43,0.00013952,2]
[331775226,1720758671768,-500.0,0.00013952,2]
[331775227,1720758671777,-317.56342002,0.00013952,2]
[331775228,1720758671787,-500.0,0.00013952,2]
[331775230,1720758671796,-500.0,0.00013952,2]
[331775231,1720758671806,-326.60654296,0.00013952,2]
[331775232,1720758671816,-500.0,0.00013952,2]
[331775233,1720758671825,-335.61759322,0.00013952,2]
[331775234,1720758671835,-550.5,0.00013952,2]
[331775235,1720758671848,-515.02,0.00013952,2]
[331775236,1720758671857,-500.0,0.00013952,2]
[331775237,1720758671868,-500.0,0.00013952,2]
[331775238,1720758671877,-500.0,0.00013952,2]
[331775239,1720758671887,-761.85,0.00013952,2]
[331775240,1720758671896,-500.0,0.00013952,2]
[331775241,1720758671906,-500.0,0.00013952,2]
[331775242,1720758671915,-500.0,0.00013952,2]
[331775243,1720758671925,-500.0,0.00013952,2]
[331775244,1720758671934,-500.0,0.00013952,2]
[331775245,1720758671945,-500.0,0.00013952,2]
[331775246,1720758671956,-500.0,0.00013952,2]
[331775247,1720758671967,-500.0,0.00013952,2]
[331775248,1720758671977,-500.0,0.00013952,2]
[331775249,1720758671988,-500.0,0.00013952,2]
[331775250,1720758671999,-500.0,0.00013952,2]
[331775251,1720758672013,-500.0,0.00013952,2]
[331775252,1720758672022,-500.0,0.00013952,2]
[331775253,1720758672033,-500.0,0.00013952,2]
[331775254,1720758672044,-500.0,0.00013952,2]
[331775255,1720758672054,-500.0,0.00013952,2]
[331775256,1720758672064,-500.0,0.00013952,2]
[331775257,1720758672073,-500.0,0.00013952,2]
[331775258,1720758672082,-500.0,0.00013952,2]
[331775259,1720758672092,-500.0,0.00013952,2]
[331775260,1720758672101,-500.0,0.00013952,2]
[331775261,1720758672111,-500.0,0.00013952,2]
[331775262,1720758672120,-500.0,0.00013952,2]
[331775263,1720758672130,-500.0,0.00013952,2]
[331775264,1720758672139,-500.0,0.00013952,2]
[331775265,1720758672148,-413.57,0.00013952,2]
[331775266,1720758672158,-879.74,0.00013952,2]
[331775267,1720758672167,-500.0,0.00013952,2]
[331775268,1720758672176,-500.0,0.00013952,2]
[331775269,1720758672187,-500.0,0.00013952,2]
[331775270,1720758672196,-510.38,0.00013952,2]
[331775271,1720758672206,-508.09,0.00013952,2]
[331775272,1720758672215,-647.66,0.00013952,2]
[331775273,1720758672225,-500.0,0.00013952,2]
[331775274,1720758672234,-779.84,0.00013952,2]
[331775275,1720758672246,-500.0,0.00013952,2]
[331775276,1720758672258,-500.0,0.00013952,2]
[331775277,1720758672268,-500.0,0.00013952,2]
[331775278,1720758672278,-500.0,0.00013952,2]
[331775279,1720758672287,-500.0,0.00013952,2]
[331775280,1720758672297,-500.0,0.00013952,2]
[331775281,1720758672306,-500.0,0.00013952,2]
[331775282,1720758672315,-500.0,0.00013952,2]
[331775283,1720758672327,-500.0,0.00013952,2]
[331775284,1720758672338,-500.0,0.00013952,2]
[331775285,1720758672349,-440.46,0.00013952,2]
[331775286,1720758672360,-909.35,0.00013952,2]
[331775287,1720758672371,-500.0,0.00013952,2]
[331775288,1720758672381,-500.0,0.00013952,2]
[331775289,1720758672391,-500.0,0.00013952,2]
[331775290,1720758672402,-500.0,0.00013952,2]
[331775291,1720758672411,-500.0,0.00013952,2]
[331775292,1720758672423,-500.0,0.00013952,2]
[331775293,1720758672432,-501.72,0.00013952,2]
[331775294,1720758672441,-588.83052783,0.00013952,2]
[331775295,1720758672451,-500.0,0.00013952,2]
[331775296,1720758672460,-619.43,0.00013952,2]
[331775297,1720758672469,-500.0,0.00013952,2]
[331775298,1720758672478,-567.43,0.00013952,2]
[331775299,1720758672488,-530.31715767,0.00013952,2]
[331775300,1720758672498,-500.0,0.00013952,2]
[331775301,1720758672510,-500.0,0.00013952,2]
[331775302,1720758672519,-500.0,0.00013952,2]
[331775303,1720758672529,-500.0,0.00013952,2]
[331775304,1720758672538,-1018.14,0.00013952,2]
[331775305,1720758672547,-500.0,0.00013952,2]
[331775306,1720758672557,-500.0,0.00013952,2]
[331775307,1720758672567,-1152.0,0.00013952,2]
[331775308,1720758672576,-678.9,0.00013952,2]
[331775309,1720758672585,-500.0,0.00013952,2]
[331775310,1720758672594,-790.29,0.00013952,2]
[331775311,1720758672603,-500.0,0.00013952,2]
[331775312,1720758672613,-500.0,0.00013952,2]
[331775313,1720758672622,-500.0,0.00013952,2]
[331775314,1720758672631,-672.45,0.00013952,2]
[331775315,1720758672640,-365.56,0.00013952,2]
[331775316,1720758672650,-698.41,0.00013952,2]
[331775317,1720758672659,-428.41,0.00013952,2]
[331775318,1720758672669,-500.0,0.00013952,2]
[331775319,1720758672678,-500.0,0.00013952,2]
[331775320,1720758672687,-500.0,0.00013952,2]
[331775321,1720758672697,-1563.28,0.00013952,2]
[331775322,1720758672706,-500.0,0.00013952,2]
[331775323,1720758672716,-606.81,0.00013952,2]
[331775324,1720758672725,-500.0,0.00013952,2]
[331775325,1720758672735,-500.0,0.00013952,2]
[331775326,1720758672747,-500.0,0.00013952,2]
[331775327,1720758672759,-500.0,0.00013952,2]
[331775328,1720758672769,-500.0,0.00013952,2]
[331775329,1720758672778,-876.88,0.00013952,2]
[331775330,1720758672787,-500.0,0.00013952,2]
[331775331,1720758672798,-500.0,0.00013952,2]
[331775332,1720758672810,-500.0,0.00013952,2]
[331775333,1720758672820,-500.0,0.00013952,2]
[331775334,1720758672830,-1414.21,0.00013952,2]
[331775335,1720758672841,-647.52354378,0.00013952,2]
[331775336,1720758672850,-500.0,0.00013952,2]
[331775337,1720758672860,-500.0,0.00013952,2]
[331775338,1720758672870,-700.97,0.00013952,2]
[331775339,1720758672879,-586.72,0.00013952,2]
[331775340,1720758672888,-500.0,0.00013952,2]
[331775341,1720758672899,-500.0,0.00013952,2]
[331775342,1720758672909,-500.0,0.00013952,2]
[331775343,1720758672919,-500.0,0.00013952,2]
[331775344,1720758672929,-747.32,0.00013952,2]
[331775345,1720758672939,-519.4,0.00013952,2]
[331775346,1720758672948,-500.0,0.00013952,2]
[331775347,1720758672958,-396.5,0.00013952,2]
[331775348,1720758672967,-551.98317428,0.00013952,2]
[331775349,1720758672977,-500.0,0.00013952,2]
[331775350,1720758672987,-854.24,0.00013952,2]
[331775351,1720758672997,-559.85,0.00013952,2]
[331775352,1720758673007,-694.46,0.00013952,2]
[331775353,1720758673018,-500.0,0.00013952,2]
[331775354,1720758673028,-500.0,0.00013952,2]
[331775355,1720758673038,-500.0,0.00013952,2]
[331775356,1720758673048,-500.0,0.00013952,2]
[331775357,1720758673057,-500.0,0.00013952,2]
[331775358,1720758673067,-579.52,0.00013952,2]
[331775359,1720758673076,-500.0,0.00013952,2]
[331775360,1720758673085,-621.28,0.00013952,2]
[331775361,1720758673094,-573.48,0.00013952,2]
[331775362,1720758673104,-500.0,0.00013952,2]
[331775363,1720758673114,-500.0,0.00013952,2]
[331775364,1720758673123,-672.74,0.00013952,2]
[331775365,1720758673133,-500.0,0.00013952,2]
[331775366,1720758673142,-577.08,0.00013952,2]
[331775367,1720758673151,-500.0,0.00013952,2]
[331775368,1720758673161,-500.0,0.00013952,2]
[331775369,1720758673170,-500.0,0.00013952,2]
[331775370,1720758673180,-513.9,0.00013952,2]
[331775371,1720758673190,-500.0,0.00013952,2]
[331775372,1720758673199,-500.0,0.00013952,2]
[331775373,1720758673209,-500.0,0.00013952,2]
[331775374,1720758673219,-874.84,0.00013952,2]
[331775375,1720758673229,-500.0,0.00013952,2]
[331775376,1720758673239,-500.0,0.00013952,2]
[331775377,1720758673255,-500.0,0.00013952,2]
[331775378,1720758673265,-610.95,0.00013952,2]
[331775379,1720758673274,-500.0,0.00013952,2]
[331775380,1720758673283,-500.0,0.00013952,2]
[331775381,1720758673297,-633.49,0.00013952,2]
[331775382,1720758673306,-500.0,0.00013952,2]
[331775383,1720758673316,-500.0,0.00013952,2]
[331775384,1720758673327,-500.0,0.00013952,2]
[331775385,1720758673337,-535.59,0.00013952,2]
[331775386,1720758673346,-924.7,0.00013952,2]
[331775387,1720758673355,-500.0,0.00013952,2]
[331775388,1720758673364,-625.48,0.00013952,2]
[331775389,1720758673374,-598.5,0.00013952,2]
[331775390,1720758673384,-788.29,0.00013952,2]
[331775391,1720758673393,-500.0,0.00013952,2]
[331775392,1720758673403,-500.0,0.00013952,2]
[331775393,1720758673412,-500.0,0.00013952,2]
[331775394,1720758673421,-500.0,0.00013952,2]
[331775395,1720758673431,-853.63,0.00013952,2]
[331775396,1720758673441,-500.0,0.00013952,2]
[331775397,1720758673450,-512.18,0.00013952,2]
[331775398,1720758673460,-603.96,0.00013952,2]
[331775399,1720758673469,-500.0,0.00013952,2]
[331775400,1720758673478,-500.0,0.00013952,2]
[331775401,1720758673487,-500.0,0.00013952,2]
[331775402,1720758673496,-561.04,0.00013952,2]
[331775403,1720758673510,-500.0,0.00013952,2]
[331775404,1720758673519,-703.79,0.00013952,2]
[331775405,1720758673528,-500.0,0.00013952,2]
[331775406,1720758673538,-500.0,0.00013952,2]
[331775407,1720758673547,-500.0,0.00013952,2]
[331775408,1720758673557,-844.06,0.00013952,2]
[331775409,1720758673566,-500.0,0.00013952,2]
[331775410,1720758673575,-2218.03,0.00013952,2]
[331775411,1720758673584,-697.26,0.00013952,2]
[331775412,1720758673593,-549.69414364,0.00013952,2]
[331775413,1720758673603,-574.36,0.00013952,2]
[331775414,1720758673614,-500.0,0.00013952,2]
[331775415,1720758673624,-995.23,0.00013952,2]
[331775416,1720758673634,-500.0,0.00013952,2]
[331775417,1720758673643,-500.0,0.00013952,2]
[331775418,1720758673654,-709.65,0.00013952,2]
[331775419,1720758673664,-704.23,0.00013952,2]
[331775420,1720758673674,-500.0,0.00013952,2]
[331775421,1720758673684,-500.0,0.00013952,2]
[331775422,1720758673694,-500.0,0.00013952,2]
[331775423,1720758673704,-500.0,0.00013952,2]
[331775424,1720758673714,-500.0,0.00013952,2]
[331775425,1720758673724,-234.28887993,0.00013952,2]
[331775426,1720758673735,-500.0,0.00013952,2]
[331775427,1720758673746,-500.0,0.00013952,2]
[331775428,1720758673757,-659.57,0.00013952,2]
[331775429,1720758673768,-500.0,0.00013952,2]
[331775430,1720758673778,-632.13,0.00013952,2]
[331775431,1720758673790,-500.0,0.00013952,2]
[331775432,1720758673803,-500.0,0.00013952,2]
[331775433,1720758673814,-500.0,0.00013952,2]
[331775434,1720758673824,-500.0,0.00013952,2]
[331775435,1720758673833,-500.0,0.00013952,2]
[331775436,1720758673843,-500.0,0.00013952,2]
[331775437,1720758673853,-619.86,0.00013952,2]
[331775438,1720758673863,-500.0,0.00013952,2]
[331775439,1720758673872,-500.0,0.00013952,2]
[331775440,1720758673884,-500.0,0.00013952,2]
[331775441,1720758673893,-500.0,0.00013952,2]
[331775442,1720758673904,-500.0,0.00013952,2]
[331775443,1720758673915,-500.0,0.00013952,2]
[331775444,1720758673925,-500.0,0.00013952,2]
[331775445,1720758673935,-500.0,0.00013952,2]
[331775446,1720758673948,-500.0,0.00013952,2]
[331775447,1720758673958,-919.98,0.00013952,2]
[331775448,1720758673969,-500.0,0.00013952,2]
[331775449,1720758673979,-1129.97,0.00013952,2]
[331775450,1720758673990,-500.0,0.00013952,2]
[331775451,1720758674000,-500.0,0.00013952,2]
[331775452,1720758674010,-815.63,0.00013952,2]
[331775453,1720758674020,-500.0,0.00013952,2]
[331775454,1720758674030,-500.0,0.00013952,2]
[331775455,1720758674040,-715.46,0.00013952,2]
[331775456,1720758674051,-500.0,0.00013952,2]
[331775457,1720758674062,-500.0,0.00013952,2]
[331775458,1720758674072,-500.0,0.00013952,2]
[331775459,1720758674082,-500.0,0.00013952,2]
[331775460,1720758674093,-634.19,0.00013952,2]
[331775461,1720758674103,-500.0,0.00013952,2]
[331775462,1720758674112,-1014.38,0.00013952,2]
[331775463,1720758674121,-500.0,0.00013952,2]
[331775464,1720758674131,-500.0,0.00013952,2]
[331775465,1720758674140,-503.77,0.00013952,2]
[331775466,1720758674150,-500.0,0.00013952,2]
[331775467,1720758674160,-500.0,0.00013952,2]
[331775468,1720758674169,-518.65,0.00013952,2]
[331775469,1720758674179,-500.0,0.00013952,2]
[331775470,1720758674188,-1153.24,0.00013952,2]
[331775471,1720758674197,-500.0,0.00013952,2]
[331775472,1720758674207,-500.0,0.00013952,2]
[331775473,1720758674217,-500.0,0.00013952,2]
[331775474,1720758674226,-500.0,0.00013952,2]
[331775475,1720758674236,-500.0,0.00013952,2]
[331775476,1720758674248,-500.0,0.00013952,2]
[331775477,1720758674260,-500.0,0.00013952,2]
[331775478,1720758674269,-646.02,0.00013952,2]
[331775479,1720758674279,-360.52573962,0.00013952,2]
[331775480,1720758674290,-500.0,0.00013952,2]
[331775481,1720758674299,-500.0,0.00013952,2]
[331775482,1720758674308,-500.0,0.00013952,2]
[331775483,1720758674317,-500.0,0.00013952,2]
[331775484,1720758674329,-714.72,0.00013952,2]
[331775485,1720758674338,-376.881676,0.00013952,2]
[331775486,1720758674347,-500.0,0.00013952,2]
[331775487,1720758674357,-500.0,0.00013952,2]
[331775488,1720758674366,-500.0,0.00013952,2]
[331775489,1720758674375,-635.64,0.00013952,2]
[331775490,1720758674384,-432.15766003,0.00013952,2]
[331775491,1720758674396,-500.0,0.00013952,2]
[331775492,1720758674411,-500.0,0.00013953,2]
[331775493,1720758674426,-500.0,0.00013953,2]
[331775494,1720758674439,-500.0,0.00013953,2]
[331775495,1720758674449,-500.0,0.00013953,2]
[331775496,1720758674460,-500.0,0.00013953,2]
[331775497,1720758674473,-500.0,0.00013953,2]
[331775498,1720758674485,-500.0,0.00013953,2]
[331775499,1720758674498,-500.0,0.00013953,2]
[331775500,1720758674511,-625.72,0.00013953,2]
[331775501,1720758674523,-500.0,0.00013953,2]
[331775502,1720758674536,-620.36,0.00013953,2]
[331775503,1720758674548,-500.0,0.00013953,2]
[331775504,1720758674562,-500.0,0.00013953,2]
[331775505,1720758674574,-189.94826418,0.00013953,2]
[331775506,1720758674586,-500.0,0.00013953,2]
[331775507,1720758674597,-500.0,0.00013953,2]
[331775508,1720758674610,-500.0,0.00013953,2]
[331775509,1720758674623,-443.25794507,0.00013989,2]
[331775510,1720758674635,-366.88188078,0.00013989,2]
[331775511,1720758674647,-435.8284514,0.00013996,2]
[331775512,1720758674659,-506.17746914,0.00013999,2]
[331775513,1720758674672,-500.0,0.00013999,2]
[331775514,1720758674684,-500.0,0.00013999,2]
[331775515,1720758674698,-500.0,0.00013999,2]
[331775516,1720758674711,-500.0,0.00013999,2]
[331775517,1720758674725,-1379.04,0.00013999,2]
[331775518,1720758674739,-500.0,0.00013999,2]
[331775519,1720758674752,-500.0,0.00013999,2]
[331775520,1720758674765,-500.0,0.00013999,2]
[331775521,1720758674778,-597.06,0.00013999,2]
[331775522,1720758674792,-500.0,0.00013999,2]
[331775523,1720758674804,-500.0,0.00013999,2]
[331775524,1720758674814,-1308.99,0.00013999,2]
[331775525,1720758674825,-155.0,0.00013999,2]
[331775526,1720758674837,-349.51157623,0.00013999,2]
[331775527,1720758674850,-165276.38308313,0.00014,2]
[331775528,1720758674864,-2000.0,0.00014,2]
[331775529,1720758674877,-2000.0,0.00014,2]
[331775530,1720758674889,-207472.4031234,0.00014,2]
[331775531,1720758675914,-3189.45342976,0.00014,2]
[331775532,1720758676034,-324.84012508,0.00014,2]
[331775533,1720758676384,-155.0,0.00013989,2]
[331775534,1720758676397,-124.29859554,0.00014,2]
[331775535,1720758676411,-507.49219345,0.00014,2]
[331775536,1720758676424,-4566.43182891,0.00014,2]
[331775537,1720758676439,-459.58986104,0.00014,2]
[331775538,1720758676452,-7146.8997323,0.00014,2]
[331775539,1720758676466,-2293.52835284,0.00014,2]
[331775540,1720758676479,-912.85999773,0.00014,2]
[331775541,1720758676493,-1182.69224089,0.00014,2]
[331775542,1720758676507,-1004.84499967,0.00014,2]
[331775543,1720758676520,-1449.50463452,0.00014,2]
[331775544,1720758676536,-9268.83572871,0.00014,2]
[331775545,1720758676586,-2414.68677028,0.00014,2]
[331775546,1720758676597,-1203.76568796,0.00014,2]
[331775547,1720758676609,-892.54323916,0.00014,2]
[331775548,1720758676620,-430.0,0.00014,2]
[331775549,1720758676631,-386.34527195,0.00014,2]
[331775550,1720758676655,-2278.97799735,0.00014,2]
[331775551,1720758676667,-1053.76557983,0.00014,2]
[331775552,1720758676678,-577.64,0.00014,2]
[331775553,1720758676689,-858.99079704,0.00014,2]
[331775554,1720758676701,-8492.06724633,0.00014,2]
[331775555,1720758676711,-55878.42242562,0.00014,2]
[331775556,1720758676723,-1357.51086529,0.00014,2]
[331775557,1720758676736,-1844.02373852,0.00014,2]
[331775558,1720758772121,224.97637426,9.102e-05,2]
[331775559,1720758772146,275.02362574,9.102e-05,2]
[331775560,1720758773741,500.0,0.00010746,2]
[331775564,1720758814211,229.05316951,9.102e-05,2]
[331775565,1720758848200,1138.39880609,0.00011033,2]
[331775568,1720758980054,323.71,0.00010769,2]
[331775569,1720759133324,802.31705816,0.00011199,7]
[331775570,1720759200899,686.58209449,0.00011199,2]
[331775571,1720759212932,3902.08627636,0.00011199,2]
[331775573,1720759390507,32522.07619933,0.00011198,2]
[331775574,1720759390535,166123.75846912,0.00011198,2]
[331775575,1720759390559,57968.1928127,0.00011198,2]
[331775576,1720759422391,302.35892924,0.00011199,2]
[331775577,1720759425515,300.0,0.00025,60]
[331775578,1720759454964,698.5978577,0.00011199,2]
[331775579,1720759490611,351.1104464,0.00011199,2]
[331775580,1720759537429,325.8,0.00010391,2]
[331775582,1720759549076,155.0,0.00011199,2]
[331775586,1720759705507,43610.86851831,0.00011199,2]
[331775590,1720759831748,-150.0,0.00012294,2]
[331775591,1720759831757,-1910.7,0.00012294,2]
[331775592,1720759831806,-388.88750137,0.00012294,2]
[331775593,1720759832007,-102.87249863,0.00012294,2]
[331775594,1720759832017,-654.34363373,0.00012298,2]
[331775595,1720759832076,-356.72324433,0.00012298,2]
[331775596,1720759832085,-144.35675567,0.00012298,2]
[331775597,1720759832096,-105.64324433,0.00012298,2]
[331775598,1720759832106,-250.0,0.00012352,2]
[331775599,1720759832115,-400.0,0.0001239,2]
[331775600,1720759832125,-183.74,0.00012412,2]
[331775601,1720759832134,-60.61675567,0.00012417,2]
[331775604,1720759837960,-166.66666668,0.00012194,2]
[331775605,1720759837971,-23819.20324433,0.00012417,2]
[331775606,1720759837981,-800.0,0.00012424,2]
[331775607,1720759837991,-150.0,0.00012438,2]
[331775608,1720759838001,-266.93,0.00012463,2]
[331775609,1720759838257,-1962.0,0.00012466,2]
[331775610,1720759838267,-9790.92,0.00012473,2]
[331775611,1720759838277,-243.24267,0.000126,2]
[331775613,1720759838287,-325.8,0.00012655,2]
[331775615,1720759838297,-200.0,0.00012718,2]
[331775617,1720759838307,-499.99,0.00012752,2]
[331775619,1720759838316,-181.25,0.00012804,2]
[331775621,1720759838326,-150.0,0.00012978,2]
[331775623,1720759838335,-460.32,0.00012978,2]
[331775625,1720759838345,-2423.41,0.00013,2]
[331775627,1720759838354,-3165.56958838,0.00013128,2]
[331775629,1720759838364,-155.0,0.00013128,2]
[331775631,1720759838373,-2505.54842617,0.00013218,2]
[331775633,1720759838382,-5005.58772,0.000133,2]
[331775635,1720759838391,-156.444563,0.00013386,2]
[331775637,1720759838401,-257.886499,0.00013386,2]
[331775639,1720759838410,-178.031542,0.00013386,2]
[331775641,1720759838419,-162.840988,0.00013386,2]
[331775643,1720759838429,-203.551235,0.00013386,2]
[331775645,1720759838439,-1033.431013,0.00013386,2]
[331775646,1720759838449,-1343.771106,0.00013386,2]
[331775648,1720759838459,-1613.343933,0.00013386,2]
[331775650,1720759838469,-155.0,0.00013472,2]
[331775652,1720759838478,-162.840988,0.00013553,2]
[331775654,1720759838488,-1033.431013,0.00013553,2]
[331775656,1720759838499,-1343.771106,0.00013553,2]
[331775658,1720759838508,-1613.343933,0.00013553,2]
[331775660,1720759838518,-506.17746914,0.00013574,2]
[331775662,1720759838528,-2141.63460873,0.00013574,2]
[331775664,1720759838538,-259.0512,0.00013685,2]
[331775666,1720759838547,-1799.1695,0.00013685,2]
[331775668,1720759838557,-170.81539734,0.00013685,2]
[331775670,1720759838567,-443.6594,0.00013686,2]
[331775671,1720759838576,-151.73,0.00013699,2]
[331775673,1720759838586,-5000.0,0.00013719,2]
[331775675,1720759838595,-162.840988,0.00013721,2]
[331775677,1720759838605,-1343.771106,0.00013721,2]
[331775679,1720759838615,-1033.431013,0.00013721,2]